fUSD/lending_fUSD_20260702
["ID","MTS","AMOUNT","RATE_DAILY","PERIOD"]
[426835160,1782930639000,-173.48,0.00024658,2]
[426835158,1782930639000,-173.31,0.00024658,2]
[426835175,1782930639000,-36257.8328417,0.00024948,2]
[426835165,1782930639000,-310.0,0.000248,2]
[426835204,1782930640000,-4472.33949373,0.00025,2]
[426835205,1782930640000,-857.39459188,0.00025,2]
[426835208,1782930643000,-480.0329,0.00024511,2]
[426835210,1782930643000,-1584.0,0.00025,2]
[426835209,1782930643000,-972.38384911,0.00025,2]
[426835222,1782930646000,-3714.54715191,0.00025,2]
[426835221,1782930646000,-2573.16395358,0.00025,2]
[426835220,1782930646000,-173.47,0.00024658,2]
[426835223,1782930647000,-601.52,0.00025,2]
[426835237,1782931364000,150.0,0.00020331,120]
[426835251,1782931395000,-500.0,0.00036993,120]
[426835248,1782931395000,-500.0,0.00036993,120]
[426835250,1782931395000,-500.0,0.00036993,120]
[426835244,1782931395000,-500.0,0.00036993,120]
[426835247,1782931395000,-500.0,0.00036993,120]
[426835246,1782931395000,-500.0,0.00036993,120]
[426835240,1782931395000,-500.0,0.00036993,120]
[426835243,1782931395000,-500.0,0.00036993,120]
[426835242,1782931395000,-500.0,0.00036993,120]
[426835253,1782931395000,-500.0,0.00036993,120]
[426835241,1782931395000,-500.0,0.00036993,120]
[426835238,1782931395000,-500.0,0.00036993,120]
[426835239,1782931395000,-311.0,0.00036993,120]
[426835245,1782931395000,-500.0,0.00036993,120]
[426835255,1782931395000,-500.0,0.00036993,120]
[426835249,1782931395000,-500.0,0.00036993,120]
[426835254,1782931395000,-500.0,0.00036993,120]
[426835252,1782931395000,-500.0,0.00036993,120]
[426835270,1782931395000,-487.0,0.00036993,120]
[426835268,1782931395000,-425.06065833,0.00036993,30]
[426835267,1782931395000,-487.0,0.00036993,120]
[426835266,1782931395000,-487.0,0.00036993,120]
[426835263,1782931395000,-487.0,0.00036993,120]
[426835264,1782931395000,-487.0,0.00036993,120]
[426835265,1782931395000,-487.0,0.00036993,120]
[426835262,1782931395000,-487.0,0.00036993,120]
[426835260,1782931395000,-561.79402495,0.00036993,120]
[426835258,1782931395000,-500.0,0.00036993,120]
[426835259,1782931395000,-500.0,0.00036993,120]
[426835256,1782931395000,-500.0,0.00036993,120]
[426835257,1782931395000,-500.0,0.00036993,120]
[426835261,1782931395000,-487.0,0.00036993,120]
[426835269,1782931395000,-487.0,0.00036993,120]
[426835287,1782931396000,-487.0,0.00036993,120]
[426835281,1782931396000,-487.0,0.00036993,120]
[426835286,1782931396000,-487.0,0.00036993,120]
[426835285,1782931396000,-487.0,0.00036993,120]
[426835283,1782931396000,-487.0,0.00036993,120]
[426835284,1782931396000,-487.0,0.00036993,120]
[426835282,1782931396000,-487.0,0.00036993,120]
[426835280,1782931396000,-487.0,0.00036993,120]
[426835272,1782931396000,-487.0,0.00036993,120]
[426835276,1782931396000,-487.0,0.00036993,120]
[426835274,1782931396000,-487.0,0.00036993,120]
[426835277,1782931396000,-487.0,0.00036993,120]
[426835275,1782931396000,-487.0,0.00036993,120]
[426835273,1782931396000,-487.0,0.00036993,120]
[426835271,1782931396000,-487.0,0.00036993,120]
[426835288,1782931396000,-487.0,0.00036993,120]
[426835279,1782931396000,-487.0,0.00036993,120]
[426835290,1782931396000,-487.0,0.00036993,120]
[426835278,1782931396000,-487.0,0.00036993,120]
[426835291,1782931396000,-487.0,0.00036993,120]
[426835309,1782931396000,-168.90021995,0.00036993,120]
[426835308,1782931396000,-484.33,0.00036993,120]
[426835307,1782931396000,-487.0,0.00036993,120]
[426835305,1782931396000,-487.0,0.00036993,120]
[426835306,1782931396000,-487.0,0.00036993,120]
[426835304,1782931396000,-364.87438947,0.00036993,120]
[426835303,1782931396000,-487.0,0.00036993,120]
[426835302,1782931396000,-487.0,0.00036993,120]
[426835301,1782931396000,-487.0,0.00036993,120]
[426835289,1782931396000,-487.0,0.00036993,120]
[426835299,1782931396000,-487.0,0.00036993,120]
[426835297,1782931396000,-487.0,0.00036993,120]
[426835298,1782931396000,-487.0,0.00036993,120]
[426835296,1782931396000,-487.0,0.00036993,120]
[426835295,1782931396000,-487.0,0.00036993,120]
[426835294,1782931396000,-487.0,0.00036993,120]
[426835293,1782931396000,-487.0,0.00036993,120]
[426835292,1782931396000,-487.0,0.00036993,120]
[426835300,1782931396000,-487.0,0.00036993,120]
[426835322,1782931397000,-500.0,0.00036993,120]
[426835323,1782931397000,-500.0,0.00036993,120]
[426835325,1782931397000,-500.0,0.00036993,120]
[426835328,1782931397000,-500.0,0.00036993,120]
[426835327,1782931397000,-500.0,0.00036993,120]
[426835326,1782931397000,-176.23263746,0.00036993,120]
[426835317,1782931397000,-500.0,0.00036993,120]
[426835324,1782931397000,-500.0,0.00036993,120]
[426835321,1782931397000,-500.0,0.00036993,120]
[426835316,1782931397000,-500.0,0.00036993,120]
[426835319,1782931397000,-500.0,0.00036993,120]
[426835318,1782931397000,-500.0,0.00036993,120]
[426835315,1782931397000,-500.0,0.00036993,120]
[426835313,1782931397000,-500.0,0.00036993,120]
[426835314,1782931397000,-239.34489969,0.00036993,120]
[426835312,1782931397000,-500.0,0.00036993,120]
[426835311,1782931397000,-500.0,0.00036993,120]
[426835329,1782931397000,-219.06425647,0.00036993,120]
[426835320,1782931397000,-500.0,0.00036993,120]
[426835310,1782931397000,-181.1288089,0.00036993,120]
[426835331,1782931397000,-500.0,0.00036993,120]
[426835333,1782931397000,-154.75560741,0.00036993,120]
[426835330,1782931397000,-500.0,0.00036993,120]
[426835349,1782931397000,-317.5599097,0.00036993,120]
[426835350,1782931397000,-169.21055553,0.00036993,120]
[426835347,1782931397000,-187.16743965,0.00036993,120]
[426835348,1782931397000,-202.1485014,0.00036993,120]
[426835345,1782931397000,-158.88895075,0.00036993,120]
[426835343,1782931397000,-215.65356583,0.00036993,120]
[426835344,1782931397000,-399.11072576,0.00036993,120]
[426835342,1782931397000,-292.79,0.00036993,120]
[426835346,1782931397000,-198.66423653,0.00036993,120]
[426835340,1782931397000,-252.31889768,0.00036993,120]
[426835341,1782931397000,-306.0,0.00036993,120]
[426835335,1782931397000,-186.05979006,0.00036993,120]
[426835334,1782931397000,-511.32748576,0.00036993,120]
[426835337,1782931397000,-151.93499484,0.00036993,120]
[426835332,1782931397000,-204.16151908,0.00036993,120]
[426835339,1782931397000,-181.09911342,0.00036993,120]
[426835338,1782931397000,-175.4678452,0.00036993,120]
[426835336,1782931397000,-185.61966213,0.00036993,120]
[426835360,1782931398000,-555.91638079,0.00036993,60]
[426835367,1782931398000,-500.0,0.00036993,120]
[426835373,1782931398000,-169.51199147,0.00036993,120]
[426835366,1782931398000,-251.39419341,0.00036993,120]
[426835365,1782931398000,-449.57479959,0.00036993,120]
[426835364,1782931398000,-157.6312352,0.00036993,120]
[426835363,1782931398000,-188.8454506,0.00036993,120]
[426835359,1782931398000,-1129.0,0.00036993,30]
[426835352,1782931398000,-482.3160602,0.00036993,120]
[426835362,1782931398000,-240.75485485,0.00036993,120]
[426835358,1782931398000,-196.64517282,0.00036993,120]
[426835356,1782931398000,-1129.0,0.00036993,30]
[426835357,1782931398000,-1129.0,0.00036993,30]
[426835355,1782931398000,-290.07282701,0.00036993,120]
[426835351,1782931398000,-199.09984118,0.00036993,120]
[426835372,1782931398000,-185.81236847,0.00036993,120]
[426835353,1782931398000,-202.35846805,0.00036993,120]
[426835361,1782931398000,-1427.3069,0.00036993,120]
[426835368,1782931398000,-300.35001638,0.00036993,120]
[426835354,1782931398000,-1129.0,0.00036993,30]
[426835369,1782931398000,-169.8296668,0.00036993,120]
[426835371,1782931398000,-295.16621965,0.00036993,120]
[426835387,1782931398000,-500.0,0.00036993,120]
[426835391,1782931398000,-500.0,0.00036993,120]
[426835390,1782931398000,-500.0,0.00036993,120]
[426835389,1782931398000,-500.0,0.00036993,120]
[426835384,1782931398000,-168.18725916,0.00036993,120]
[426835385,1782931398000,-1572.0,0.00036993,120]
[426835386,1782931398000,-1572.0,0.00036993,120]
[426835383,1782931398000,-161.89693286,0.00036993,120]
[426835388,1782931398000,-215.09912458,0.00036993,120]
[426835382,1782931398000,-260.77112131,0.00036993,120]
[426835380,1782931398000,-517.52650685,0.00036993,120]
[426835379,1782931398000,-500.0,0.00036993,120]
[426835376,1782931398000,-500.0,0.00036993,120]
[426835377,1782931398000,-202.39288171,0.00036993,120]
[426835378,1782931398000,-393.430801,0.00036993,120]
[426835375,1782931398000,-166.47448792,0.00036993,120]
[426835374,1782931398000,-205.77600319,0.00036993,120]
[426835370,1782931398000,-171.74124343,0.00036993,120]
[426835381,1782931398000,-565.42801911,0.00036993,120]
[426835404,1782931399000,-500.0,0.00036993,120]
[426835403,1782931399000,-500.0,0.00036993,120]
[426835407,1782931399000,-500.0,0.00036993,120]
[426835408,1782931399000,-500.0,0.00036993,120]
[426835406,1782931399000,-500.0,0.00036993,120]
[426835402,1782931399000,-159.65606026,0.00036993,120]
[426835405,1782931399000,-500.0,0.00036993,120]
[426835401,1782931399000,-500.0,0.00036993,120]
[426835398,1782931399000,-766.76,0.00036993,120]
[426835396,1782931399000,-500.0,0.00036993,120]
[426835400,1782931399000,-500.0,0.00036993,120]
[426835399,1782931399000,-500.0,0.00036993,120]
[426835393,1782931399000,-500.0,0.00036993,120]
[426835392,1782931399000,-1572.0,0.00036993,120]
[426835395,1782931399000,-500.0,0.00036993,120]
[426835394,1782931399000,-500.0,0.00036993,120]
[426835409,1782931399000,-500.0,0.00036993,120]
[426835397,1782931399000,-500.0,0.00036993,120]
[426835410,1782931399000,-500.0,0.00036993,120]
[426835412,1782931399000,-184.25130791,0.00036993,120]
[426835431,1782931399000,-500.0,0.00036993,120]
[426835411,1782931399000,-360.45349889,0.00036993,120]
[426835430,1782931399000,-500.0,0.00036993,120]
[426835429,1782931399000,-162.73822191,0.00036993,120]
[426835426,1782931399000,-154.13032199,0.00036993,120]
[426835427,1782931399000,-1233.62657591,0.00036993,120]
[426835428,1782931399000,-189.97731607,0.00036993,120]
[426835424,1782931399000,-553.22957171,0.00036993,120]
[426835423,1782931399000,-500.0,0.00036993,120]
[426835422,1782931399000,-200.39910418,0.00036993,120]
[426835425,1782931399000,-151.03231722,0.00036993,120]
[426835419,1782931399000,-239.83145659,0.00036993,120]
[426835421,1782931399000,-178.03164201,0.00036993,120]
[426835414,1782931399000,-251.40469273,0.00036993,120]
[426835415,1782931399000,-213.23767163,0.00036993,120]
[426835416,1782931399000,-178.20999821,0.00036993,120]
[426835413,1782931399000,-281.77854551,0.00036993,120]
[426835418,1782931399000,-500.0,0.00036993,120]
[426835420,1782931399000,-193.11250707,0.00036993,120]
[426835417,1782931399000,-334.06788965,0.00036993,120]
[426835441,1782931400000,-196.6019625,0.00036993,120]
[426835446,1782931400000,-500.0,0.00036993,120]
[426835448,1782931400000,-433.63238507,0.00036993,120]
[426835447,1782931400000,-500.0,0.00036993,120]
[426835445,1782931400000,-500.0,0.00036993,120]
[426835444,1782931400000,-500.0,0.00036993,120]
[426835443,1782931400000,-220.39197414,0.00036993,120]
[426835442,1782931400000,-500.0,0.00036993,120]
[426835449,1782931400000,-152.49337396,0.00036993,120]
[426835437,1782931400000,-500.0,0.00036993,120]
[426835438,1782931400000,-580.53936399,0.00036993,120]
[426835439,1782931400000,-215.56875227,0.00036993,120]
[426835436,1782931400000,-500.0,0.00036993,120]
[426835433,1782931400000,-500.0,0.00036993,120]
[426835435,1782931400000,-500.0,0.00036993,120]
[426835434,1782931400000,-162.872933,0.00036993,75]
[426835432,1782931400000,-500.0,0.00036993,120]
[426835440,1782931400000,-203.35222309,0.00036993,120]
[426835452,1782931400000,-155.85996668,0.00036993,120]
[426835455,1782931400000,-507.41239095,0.00036993,120]
[426835451,1782931400000,-208.48915034,0.00036993,120]
[426835471,1782931400000,-291.2109625,0.00036993,120]
[426835468,1782931400000,-939.0,0.00036993,30]
[426835466,1782931400000,-631.58772591,0.00036993,120]
[426835467,1782931400000,-249.69110145,0.00036993,120]
[426835465,1782931400000,-183.89444146,0.00036993,120]
[426835462,1782931400000,-314.31488221,0.00036993,120]
[426835463,1782931400000,-173.26638032,0.00036993,120]
[426835464,1782931400000,-182.84964781,0.00036993,120]
[426835469,1782931400000,-161.86509624,0.00036993,120]
[426835459,1782931400000,-232.27196997,0.00036993,120]
[426835461,1782931400000,-188.1122826,0.00036993,120]
[426835453,1782931400000,-160.22441184,0.00036993,120]
[426835454,1782931400000,-509.96731394,0.00036993,120]
[426835456,1782931400000,-170.86958805,0.00036993,120]
[426835450,1782931400000,-178.22461391,0.00036993,120]
[426835457,1782931400000,-200.95318607,0.00036993,120]
[426835458,1782931400000,-198.35910071,0.00036993,120]
[426835460,1782931400000,-159.7127713,0.00036993,120]
[426835470,1782931400000,-216.86239344,0.00036993,120]
[426835485,1782931401000,-656.21,0.00036993,120]
[426835484,1782931401000,-500.0,0.00036993,120]
[426835481,1782931401000,-656.21,0.00036993,120]
[426835483,1782931401000,-656.21,0.00036993,120]
[426835482,1782931401000,-500.0,0.00036993,120]
[426835480,1782931401000,-500.0,0.00036993,120]
[426835478,1782931401000,-500.0,0.00036993,120]
[426835477,1782931401000,-656.21,0.00036993,120]
[426835476,1782931401000,-656.21,0.00036993,120]
[426835475,1782931401000,-656.21,0.00036993,120]
[426835473,1782931401000,-656.21,0.00036993,120]
[426835472,1782931401000,-656.21,0.00036993,120]
[426835486,1782931401000,-500.0,0.00036993,120]
[426835479,1782931401000,-656.21,0.00036993,120]
[426835474,1782931401000,-656.21,0.00036993,120]
[426835487,1782931401000,-656.21,0.00036993,120]
[426835489,1782931401000,-656.21,0.00036993,120]
[426835488,1782931401000,-500.0,0.00036993,120]
[426835503,1782931401000,-656.21,0.00036993,120]
[426835501,1782931401000,-656.21,0.00036993,120]
[426835502,1782931401000,-656.21,0.00036993,120]
[426835499,1782931401000,-656.21,0.00036993,120]
[426835498,1782931401000,-180.69675921,0.00036993,120]
[426835497,1782931401000,-500.0,0.00036993,120]
[426835500,1782931401000,-656.21,0.00036993,120]
[426835494,1782931401000,-500.0,0.00036993,120]
[426835495,1782931401000,-656.21,0.00036993,120]
[426835493,1782931401000,-656.21,0.00036993,120]
[426835492,1782931401000,-500.0,0.00036993,120]
[426835490,1782931401000,-500.0,0.00036993,120]
[426835491,1782931401000,-656.21,0.00036993,120]
[426835496,1782931401000,-656.21,0.00036993,120]
[426835512,1782931402000,-500.0,0.00036993,120]
[426835519,1782931402000,-560.38169585,0.00036993,120]
[426835518,1782931402000,-500.0,0.00036993,120]
[426835516,1782931402000,-500.0,0.00036993,120]
[426835517,1782931402000,-500.0,0.00036993,120]
[426835515,1782931402000,-500.0,0.00036993,120]
[426835514,1782931402000,-500.0,0.00036993,120]
[426835513,1782931402000,-500.0,0.00036993,120]
[426835504,1782931402000,-656.21,0.00036993,120]
[426835510,1782931402000,-500.0,0.00036993,120]
[426835508,1782931402000,-179.11270178,0.00036993,120]
[426835509,1782931402000,-640.21375874,0.00036993,120]
[426835505,1782931402000,-656.21,0.00036993,120]
[426835507,1782931402000,-230.92166246,0.00036993,120]
[426835506,1782931402000,-656.37774553,0.00036993,120]
[426835521,1782931402000,-500.0,0.00036993,120]
[426835511,1782931402000,-500.0,0.00036993,120]
[426835523,1782931402000,-185.73464376,0.00036993,120]
[426835522,1782931402000,-151.97364258,0.00036993,120]
[426835520,1782931402000,-156.67634541,0.00036993,120]
[426835540,1782931402000,-261.02342542,0.00036993,120]
[426835541,1782931402000,-200.09607135,0.00036993,30]
[426835538,1782931402000,-180.15196896,0.00036993,120]
[426835537,1782931402000,-368.46153551,0.00036993,120]
[426835536,1782931402000,-210.4391,0.00036993,120]
[426835535,1782931402000,-500.0,0.00036993,120]
[426835534,1782931402000,-500.0,0.00036993,120]
[426835533,1782931402000,-179.95562477,0.00036993,120]
[426835539,1782931402000,-273.34704991,0.00036993,120]
[426835529,1782931402000,-205.93866024,0.00036993,120]
[426835531,1782931402000,-181.90360553,0.00036993,120]
[426835530,1782931402000,-258.930959,0.00036993,120]
[426835528,1782931402000,-290.33943437,0.00036993,120]
[426835527,1782931402000,-232.33466032,0.00036993,120]
[426835526,1782931402000,-173.4632145,0.00036993,120]
[426835525,1782931402000,-185.81530473,0.00036993,120]
[426835524,1782931402000,-174.14731224,0.00036993,120]
[426835532,1782931402000,-500.0,0.00036993,120]
[426835552,1782931403000,-555.75874357,0.00036993,120]
[426835553,1782931403000,-188.39940345,0.00036993,120]
[426835557,1782931403000,-2624.67,0.00036993,30]
[426835556,1782931403000,-2624.67,0.00036993,30]
[426835555,1782931403000,-268.06766277,0.00036993,120]
[426835551,1782931403000,-361.54384016,0.00036993,120]
[426835554,1782931403000,-187.86923311,0.00036993,120]
[426835550,1782931403000,-497.49,0.00036993,120]
[426835545,1782931403000,-456.65721396,0.00036993,120]
[426835549,1782931403000,-151.34626562,0.00036993,120]
[426835547,1782931403000,-487.0,0.00036993,120]
[426835543,1782931403000,-217.61755823,0.00036993,120]
[426835544,1782931403000,-487.0,0.00036993,120]
[426835546,1782931403000,-487.0,0.00036993,120]
[426835542,1782931403000,-577.36388719,0.00036993,120]
[426835559,1782931403000,-2624.67,0.00036993,30]
[426835548,1782931403000,-487.0,0.00036993,120]
[426835558,1782931403000,-2624.67,0.00036993,30]
[426835560,1782931403000,-2624.67,0.00036993,30]
[426835561,1782931403000,-2624.67,0.00036993,30]
[426835579,1782931403000,-2624.67,0.00036993,30]
[426835577,1782931403000,-2624.67,0.00036993,30]
[426835576,1782931403000,-2624.67,0.00036993,30]
[426835574,1782931403000,-2624.67,0.00036993,30]
[426835575,1782931403000,-2624.67,0.00036993,30]
[426835571,1782931403000,-2624.67,0.00036993,30]
[426835572,1782931403000,-2624.67,0.00036993,30]
[426835573,1782931403000,-2624.67,0.00036993,30]
[426835578,1782931403000,-2624.67,0.00036993,30]
[426835569,1782931403000,-200.79147254,0.00036993,120]
[426835568,1782931403000,-248.03842253,0.00036993,120]
[426835566,1782931403000,-2624.67,0.00036993,30]
[426835567,1782931403000,-2624.67,0.00036993,30]
[426835565,1782931403000,-2624.67,0.00036993,30]
[426835564,1782931403000,-2624.67,0.00036993,30]
[426835562,1782931403000,-2624.67,0.00036993,30]
[426835563,1782931403000,-2624.67,0.00036993,30]
[426835570,1782931403000,-2624.67,0.00036993,30]
[426835591,1782931404000,-1026.44,0.00036993,120]
[426835593,1782931404000,-1026.44,0.00036993,120]
[426835596,1782931404000,-1026.44,0.00036993,120]
[426835595,1782931404000,-1026.44,0.00036993,120]
[426835594,1782931404000,-1026.44,0.00036993,120]
[426835589,1782931404000,-1026.44,0.00036993,120]
[426835592,1782931404000,-1026.44,0.00036993,120]
[426835590,1782931404000,-1026.44,0.00036993,120]
[426835584,1782931404000,-1026.44,0.00036993,120]
[426835588,1782931404000,-1026.44,0.00036993,120]
[426835585,1782931404000,-1026.44,0.00036993,120]
[426835586,1782931404000,-179.92045926,0.00036993,120]
[426835583,1782931404000,-1026.44,0.00036993,120]
[426835582,1782931404000,-1026.44,0.00036993,120]
[426835581,1782931404000,-2624.71701045,0.00036993,30]
[426835580,1782931404000,-2624.67,0.00036993,30]
[426835597,1782931404000,-1541.72,0.00036993,120]
[426835587,1782931404000,-1026.44,0.00036993,120]
[426835599,1782931404000,-1541.72,0.00036993,120]
[426835598,1782931404000,-1026.44,0.00036993,120]
[426835600,1782931404000,-1026.44,0.00036993,120]
[426835618,1782931404000,-1541.72,0.00036993,120]
[426835617,1782931404000,-1026.5543,0.00036993,120]
[426835615,1782931404000,-1541.72,0.00036993,120]
[426835613,1782931404000,-1541.72,0.00036993,120]
[426835614,1782931404000,-1026.44,0.00036993,120]
[426835612,1782931404000,-1026.44,0.00036993,120]
[426835611,1782931404000,-1541.72,0.00036993,120]
[426835610,1782931404000,-1026.44,0.00036993,120]
[426835616,1782931404000,-1541.72,0.00036993,120]
[426835609,1782931404000,-1541.72,0.00036993,120]
[426835607,1782931404000,-1541.72,0.00036993,120]
[426835606,1782931404000,-1026.44,0.00036993,120]
[426835604,1782931404000,-1026.44,0.00036993,120]
[426835605,1782931404000,-1541.72,0.00036993,120]
[426835603,1782931404000,-1541.72,0.00036993,120]
[426835602,1782931404000,-1026.44,0.00036993,120]
[426835601,1782931404000,-1541.72,0.00036993,120]
[426835608,1782931404000,-1026.44,0.00036993,120]
[426835632,1782931405000,-268.18715774,0.00036993,120]
[426835631,1782931405000,-1541.83907281,0.00036993,120]
[426835630,1782931405000,-1541.72,0.00036993,120]
[426835629,1782931405000,-1541.72,0.00036993,120]
[426835628,1782931405000,-1541.72,0.00036993,120]
[426835627,1782931405000,-1541.72,0.00036993,120]
[426835626,1782931405000,-1541.72,0.00036993,120]
[426835622,1782931405000,-1541.72,0.00036993,120]
[426835625,1782931405000,-1541.72,0.00036993,120]
[426835623,1782931405000,-1541.72,0.00036993,120]
[426835620,1782931405000,-1541.72,0.00036993,120]
[426835621,1782931405000,-1541.72,0.00036993,120]
[426835619,1782931405000,-1541.72,0.00036993,120]
[426835634,1782931405000,-500.0,0.00036993,120]
[426835624,1782931405000,-216.96011458,0.00036993,120]
[426835633,1782931405000,-201.92512177,0.00036993,120]
[426835636,1782931405000,-357.91954859,0.00036993,120]
[426835652,1782931405000,-232.00498067,0.00036993,120]
[426835635,1782931405000,-500.0,0.00036993,120]
[426835653,1782931405000,-166.60749893,0.00036993,120]
[426835650,1782931405000,-175.07539568,0.00036993,120]
[426835651,1782931405000,-324.88179246,0.00036993,120]
[426835649,1782931405000,-500.0,0.00036993,120]
[426835647,1782931405000,-500.0,0.00036993,120]
[426835646,1782931405000,-500.0,0.00036993,120]
[426835644,1782931405000,-500.0,0.00036993,120]
[426835648,1782931405000,-500.0,0.00036993,120]
[426835643,1782931405000,-183.85892212,0.00036993,120]
[426835645,1782931405000,-500.0,0.00036993,120]
[426835637,1782931405000,-500.0,0.00036993,120]
[426835640,1782931405000,-500.0,0.00036993,120]
[426835638,1782931405000,-159.09210521,0.00036993,120]
[426835642,1782931405000,-507.96274362,0.00036993,120]
[426835641,1782931405000,-500.0,0.00036993,120]
[426835639,1782931405000,-182.52714837,0.00036993,120]
[426835664,1782931406000,-500.0,0.00036993,120]
[426835672,1782931406000,-500.0,0.00036993,120]
[426835671,1782931406000,-1809.12,0.00036993,120]
[426835669,1782931406000,-341.1239172,0.00036993,120]
[426835666,1782931406000,-500.0,0.00036993,120]
[426835668,1782931406000,-477.65917448,0.00036993,120]
[426835667,1782931406000,-191.57360185,0.00036993,120]
[426835665,1782931406000,-500.0,0.00036993,120]
[426835663,1782931406000,-470.44780205,0.00036993,120]
[426835670,1782931406000,-1809.12,0.00036993,120]
[426835661,1782931406000,-535.45,0.00036993,120]
[426835660,1782931406000,-487.0,0.00036993,120]
[426835658,1782931406000,-308.68938963,0.00036993,120]
[426835659,1782931406000,-487.0,0.00036993,120]
[426835657,1782931406000,-487.0,0.00036993,120]
[426835656,1782931406000,-487.0,0.00036993,120]
[426835655,1782931406000,-322.27620392,0.00036993,120]
[426835654,1782931406000,-325.38879644,0.00036993,120]
[426835662,1782931406000,-500.0,0.00036993,120]
[426835673,1782931406000,-1809.12,0.00036993,120]
[426835694,1782931406000,-1809.12,0.00036993,120]
[426835675,1782931406000,-616.84812239,0.00036993,120]
[426835676,1782931406000,-1809.12,0.00036993,120]
[426835695,1782931406000,-1809.12,0.00036993,120]
[426835692,1782931406000,-1809.12,0.00036993,120]
[426835691,1782931406000,-1809.12,0.00036993,120]
[426835690,1782931406000,-160.37037422,0.00036993,120]
[426835688,1782931406000,-1809.12,0.00036993,120]
[426835687,1782931406000,-1809.12,0.00036993,120]
[426835689,1782931406000,-1809.12,0.00036993,120]
[426835686,1782931406000,-1809.12,0.00036993,120]
[426835693,1782931406000,-188.9695358,0.00036993,120]
[426835683,1782931406000,-292.91289863,0.00036993,120]
[426835684,1782931406000,-1809.12,0.00036993,120]
[426835674,1782931406000,-175.81931479,0.00036993,120]
[426835679,1782931406000,-1809.12,0.00036993,120]
[426835678,1782931406000,-182.90934966,0.00036993,120]
[426835677,1782931406000,-1809.12,0.00036993,120]
[426835681,1782931406000,-1809.12,0.00036993,120]
[426835682,1782931406000,-1809.12,0.00036993,120]
[426835685,1782931406000,-1809.12,0.00036993,120]
[426835680,1782931406000,-1809.12,0.00036993,120]
[426835710,1782931407000,-2191.48,0.00036993,120]
[426835705,1782931407000,-164.94102709,0.00036993,60]
[426835708,1782931407000,-315.18445981,0.00036993,120]
[426835709,1782931407000,-172.6364221,0.00036993,120]
[426835707,1782931407000,-158.37858434,0.00036993,120]
[426835704,1782931407000,-1572.0,0.00036993,120]
[426835702,1782931407000,-1809.15136605,0.00036993,120]
[426835698,1782931407000,-1809.12,0.00036993,120]
[426835703,1782931407000,-521.93501178,0.00036993,120]
[426835700,1782931407000,-1572.0,0.00036993,120]
[426835701,1782931407000,-1809.12,0.00036993,120]
[426835699,1782931407000,-1809.12,0.00036993,120]
[426835696,1782931407000,-420.0,0.00036993,120]
[426835697,1782931407000,-1809.12,0.00036993,120]
[426835711,1782931407000,-2191.48,0.00036993,120]
[426835706,1782931407000,-218.21478629,0.00036993,120]
[426835712,1782931407000,-2191.48,0.00036993,120]
[426835714,1782931407000,-2191.48,0.00036993,120]
[426835713,1782931407000,-2191.48,0.00036993,120]
[426835730,1782931407000,-273.39675526,0.00036993,120]
[426835727,1782931407000,-598.64367215,0.00036993,120]
[426835726,1782931407000,-2191.48,0.00036993,120]
[426835729,1782931407000,-179.00624102,0.00036993,120]
[426835724,1782931407000,-402.06,0.00036993,120]
[426835725,1782931407000,-2191.48,0.00036993,120]
[426835723,1782931407000,-2191.48,0.00036993,120]
[426835728,1782931407000,-2191.48,0.00036993,120]
[426835721,1782931407000,-2191.48,0.00036993,120]